Cogmind - Beta 16 @@@ ROGUE MODE // 2025.11.27 @ 10:24:16 Player: Librarian Ape Result: Self-destructed Performance ------------- Evolutions (2) 1000 Regions Visited (3) 600 Robots Destroyed (32) 160 Value Destroyed (1035) 1035 Prototype IDs (14) 280 Alien Tech Used (0) 0 Bonus (0) 0 TOTAL SCORE: 3075 Bonus ------- None Cogmind --------- Core Integrity 477/550 Matter 24/300 Energy 265/265 System Corruption 2% Temperature Warm (141) Movement Treading (145) Location -8/Materials Parts ------- > --- POWER (1) -------- Reinforced Ion Engine > --- PROPULSION (3) --- Advanced Treads Advanced Treads Advanced Treads > --- UTILITY (5) ------ Medium Storage Unit Structural Scanner > --- WEAPON (2) ------- Light Cannon Flak Cannon > --- INVENTORY (10) --- Light Deuterium Engine Advanced Treads Advanced Treads Advanced Treads Advanced Treads Targeting Computer Subdweller Beam Cannon Battle Cannon Peak State ------------ > --- POWER ------------ Reinforced Ion Engine > --- PROPULSION ------- Advanced Treads Advanced Treads Advanced Treads > --- UTILITY ---------- Medium Storage Unit Structural Scanner Seismic Detector Tower Shield > --- WEAPON ----------- Light Cannon Flak Cannon > --- INVENTORY -------- Light Deuterium Engine Advanced Treads Advanced Treads Advanced Treads Advanced Treads Targeting Computer Subdweller Beam Cannon Battle Cannon [Rating: 40] Favorites ----------- Power Ion Engine Engine Ion Engine Propulsion Light Treads Treads Light Treads Wheel Wheel Utility Medium Storage Unit Device Structural Scanner Storage Medium Storage Unit Processor Improved Signal Interpreter Hackware Makeshift System Shield Protection Light Armor Plating Weapon Subdweller Machine Gun Energy Gun Small Laser Energy Cannon Subdweller Beam Cannon Ballistic Gun Subdweller Machine Gun Ballistic Cannon Light Cannon Launcher Grenade Launcher Build | -11 -10 -10 -8 ------- Run | Yrd Mat Sub Mat Slots Evolved 4 | . . . 4 Power . | . . . . Propulsion 1 | . . . 1 Utility 3 | . . . 3 Weapon . | . . . . Parts Attached 42 | 6 8 15 13 Power 7 | 1 1 4 1 Engine 7 | 1 1 4 1 Core . | . . . . Reactor . | . . . . Propulsion 11 | 2 2 2 5 Treads 9 | . 2 2 5 Leg . | . . . . Wheel 2 | 2 . . . Hover . | . . . . Flight . | . . . . Utility 10 | 2 1 2 5 Device 3 | 1 . 2 . Storage 2 | 1 1 . . Processor 1 | . . . 1 Hackware 1 | . . . 1 Protection 3 | . . . 3 Artifact . | . . . . Weapon 14 | 1 4 7 2 Energy Gun 1 | 1 . . . Energy Cannon 3 | . 1 2 . Ballistic Gun 4 | . 1 3 . Ballistic Cannon 5 | . 2 1 2 Launcher 1 | . . 1 . Special Weapon . | . . . . Impact Weapon . | . . . . Slashing Weapon . | . . . . Piercing Weapon . | . . . . Special Melee Weapon . | . . . . Unidentified Prototypes . | . . . . Parts Lost 11 | . . 4 7 Power 2 | . . 2 . Propulsion . | . . . . Utility 7 | . . 1 6 Weapon 2 | . . 1 1 Highest Loss Streak 4 | . . 1 4 To Critical Strikes . | . . . . Average Backups 9 | 3 9 9 8 Power . | . 1 . . Propulsion 1 | 1 2 1 2 Utility 3 | . 3 4 2 Weapon 3 | 1 1 3 2 Tool/Special . | . . . . Unused Backups 12 | . 3 2 7 Power 1 | . . . 1 Propulsion 4 | . . . 4 Utility 2 | . . . 2 Weapon 4 | . 2 2 . Tool/Special 1 | . 1 . . Average Slot Usage (%) 96 | . 99 95 89 Engine 10 | . 14 10 8 Treads 24 | . 10 28 25 Wheel 3 | . 17 . . Device 14 | . 14 13 15 Storage 13 | . 14 14 8 Energy Cannon 2 | . 4 1 3 Ballistic Gun 13 | . 8 15 4 Ballistic Cannon 3 | . 9 1 8 Launcher 7 | . . 10 . Peak Build Rating 40 | 6 8 15 40 Average Rating 11 | 4 7 11 24 On Entrance 7 | . 6 8 14 Avg Prop Armor Cover (%) . | . . . . Naked Turns . | . . . . Heaviest Build 69 | 12 21 28 69 Greatest Support 66 | 20 40 40 66 Greatest Overweight (x) 1 | . 1 . 1 Average Overweight (x) . | . . . . Largest Inventory Capacity 10 | 8 10 10 10 Average Capacity 9 | 7 9 10 10 Most Carried 10 | 6 10 10 10 Average Carried 9 | 3 9 9 9 Final Capacity 10 | 8 10 10 10 Final Carried 10 | 6 10 10 8 Class Distribution -------------------- 86% | Mutant 13% | Scavenger-Mutant Dominant Class ---------------- Mutant | -10/Materials Mutant | -10/Subcaves Mutant | -8/Materials Resources | -11 -10 -10 -8 ----------- Run | Yrd Mat Sub Mat Matter Collected 1036 | 219 151 631 35 Remotely . | . . . . Salvage Created 921 | 12 326 413 170 Parts 58 | 3 16 32 7 Haulers Intercepted 2 | . 2 . . Recyclers Shooed . | . . . . Parts Field Recycled . | . . . . Retrieved Matter . | . . . . Parts Self-Destructed 8 | . . 8 . Prevented . | . . . . Parts Restored . | . . . . Kills | -11 -10 -10 -8 ------- Run | Yrd Mat Sub Mat Combat Hostiles Destroyed 28 | . 6 16 6 Guns 10 | . 1 9 . Cannons 11 | . 5 . 6 AOE 7 | . . 7 . Classes Destroyed 8 | 1 3 2 2 Tunneler 1 | 1 . . . Hauler 2 | . 2 . . Watcher 1 | . 1 . . Swarmer 4 | . . 4 . Grunt 9 | . 6 . 3 Brawler 2 | . . . 2 Sentry 1 | . . . 1 Subdweller 12 | . . 12 . Best Kill Streak 4 | 1 2 4 4 Combat Bots Only 4 | . 2 4 4 Max Kills in Single Turn 3 | 1 1 3 1 Gunslinging . | . . . . Exploded 2 | . . 2 . Melee . | . . . . Uniques/NPCs Destroyed . | . . . . Combat | -11 -10 -10 -8 -------- Run | Yrd Mat Sub Mat Hostile Shots Fired 222 | . 28 47 147 Missed 67 | . 7 16 44 Hits 155 | . 21 31 103 Melee 3 | . . . 3 Projectile 152 | . 21 31 100 Critical Strikes 9 | . . 4 5 Damage Taken 2374 | . 282 709 1383 Core 266 | . 64 129 73 Absorbed by Shields . | . . . . Core Remaining (%) 61 | 100 . 22 . Volleys Fired 111 | 6 33 51 21 Largest 2 | 1 2 2 2 Hottest 110 | 40 80 108 110 Shots Fired 185 | 6 66 74 39 Gun 83 | 6 24 48 5 Cannon 82 | . 42 8 32 Launcher 20 | . . 18 2 Special . | . . . . Kinetic 139 | . 52 52 35 Thermal 26 | 6 14 4 2 Explosive 20 | . . 18 2 Electromagnetic . | . . . . Robot Hit Streak 30 | 2 6 30 8 Robot Miss Streak 6 | 1 3 2 6 Penetration Max . | . . . . Secondary Targets 1 | . . 1 . Max Gunslinging Chain 1 | . . 1 . Shots Hit Robots 122 | 4 39 48 31 Core Hits 61 | 1 14 25 21 Critical Kills . | . . . . Critical Parts Destroyed . | . . . . Critical Strikes 3 | . . . 3 Blast 3 | . . . 3 Melee Attacks . | . . . . Impact . | . . . . Slashing . | . . . . Piercing . | . . . . Sneak Attacks . | . . . . Combat Hostiles . | . . . . Follow-up Attacks . | . . . . Damage Inflicted 2809 | 42 613 1435 719 Guns 1172 | 42 210 822 98 Cannons 934 | . 403 27 504 Explosions 701 | . . 586 115 Melee . | . . . . Ramming 2 | . . . 2 Kinetic 1839 | . 443 822 574 Thermal 267 | 42 170 27 28 Explosive 701 | . . 586 115 Electromagnetic . | . . . . Impact . | . . . . Slashing . | . . . . Piercing . | . . . . Highest Corruption 2 | . 2 2 2 Average Corruption 2 | . 2 2 2 Corruption Purged . | . . . . Corruption Blocked . | . . . . Effects 38 | . 3 33 2 Message Errors 8 | . . 8 . Matter Fused 6 | . 2 3 1 Heat Flow Errors 4 | . 1 2 1 Energy Discharges 5 | . . 5 . Parts Fused 1 | . . 1 . Data Loss (minor) 8 | . . 8 . Data Loss (major) 3 | . . 3 . Misfires 3 | . . 3 . Overload Shots . | . . . . Overflow Damage 4 | . . 4 . Projectiles . | . . . . Explosions 4 | . . 4 . Melee . | . . . . Knockbacks 9 | . 5 . 4 Impact . | . . . . Kinetic 9 | . 5 . 4 Secondary . | . . . . Self-Inflicted Damage 163 | . . 146 17 Shots 9 | . . 8 1 Rammed 1 | . . . 1 Targets Rammed 1 | . . . 1 Kicked . | . . . . Crushed . | . . . . Highest Temperature 186 | . 153 133 186 Average Temperature 52 | . 35 52 66 Received Heat Transfer 876 | . 165 81 630 Siege Activations . | . . . . Martial Activations . | . . . . Shielding Activations . | . . . . Robots Disrupted . | . . . . Combat Hostiles . | . . . . Robots Corrupted . | . . . . Combat Hostiles . | . . . . Parts Fried . | . . . . Impact Corruptions . | . . . . Robots Melted . | . . . . Combat Hostiles . | . . . . Parts Melted 1 | . 1 . . Heat Transferred 532 | 100 358 37 37 Parts Sabotaged . | . . . . Parts Stolen . | . . . . Parts Stripped . | . . . . Power Chain Reactions . | . . . . Alert | -11 -10 -10 -8 ------- Run | Yrd Mat Sub Mat Maximum Alert Level . | . . . . Low Security (%) 100 | 100 100 . 100 Level 1 . | . . . . Level 2 . | . . . . Level 3 . | . . . . Level 4 . | . . . . Level 5 . | . . . . High Security . | . . . . Max Security . | . . . . Peak Influence 80 | 5 68 . 80 Initial 2 | . . . 2 Average 18 | . 16 . 30 Influence Increases 520 | 5 185 140 190 Destroy 0b10 Robot/C 320 | . 120 80 120 Destroy 0b10 Robot/NC 20 | 5 15 . . Destroy Leader 66 | . 36 . 30 Successful Hack 13 | . 13 . . Destroy Structure 11 | . 1 . 10 Lose Combat Pursuer 90 | . . 60 30 Influence Decreases 465 | 5 163 156 141 Entered New Map 15 | . . 11 4 Time Decay 370 | 5 163 135 67 Lost Part 80 | . . 10 70 Squads Dispatched 2 | . 1 . 1 Investigation 1 | . 1 . . Extermination . | . . . . Reinforcement 1 | . . . 1 Assault . | . . . . Garrison . | . . . . Intercept . | . . . . Searches Triggered . | . . . . Construction Impeded . | . . . . Haulers Reinforced . | . . . . Active Scanning Responses . | . . . . Cargo Convoy Interrupts . | . . . . Stealth | -11 -10 -10 -8 --------- Run | Yrd Mat Sub Mat Distress Signals 2 | . . . 2 Communications Jammed . | . . . . Distress Signals . | . . . . Times Spotted 54 | . 15 18 21 Peak Tracking Total 13 | . 4 6 13 Tactical Retreats 4 | . . 2 2 Traps | -11 -10 -10 -8 ------- Run | Yrd Mat Sub Mat Traps Triggered 2 | . 2 . . Indirectly . | . . . . Trap Hack Attempts . | . . . . Triggered . | . . . . Disarmed . | . . . . Reprogrammed . | . . . . Reused . | . . . . Traps Extracted . | . . . . Installed . | . . . . Triggered . | . . . . Machines | -11 -10 -10 -8 ---------- Run | Yrd Mat Sub Mat Machines Disabled 1 | . . 1 . Max in Single Turn 1 | . . 1 . Garrison Access 1 | . . . 1 Machines Repaired . | . . . . Machines Dismantled . | . . . . Machines Sabotaged . | . . . . Overloaded Fab Kills . | . . . . Hacking | -11 -10 -10 -8 --------- Run | Yrd Mat Sub Mat Machines Accessed 9 | . 6 1 2 Terminals 5 | . 5 . . Fabricators . | . . . . Repair Stations . | . . . . Recycling Units 1 | . 1 . . Scanalyzers 1 | . . . 1 Garrison Access 1 | . . . 1 Total Hacks 23 | . 20 1 2 Successful 13 | . 10 1 2 Failed 9 | . 9 . . Catastrophic 3 | . 3 . . Database Lockouts 1 | . 1 . . Manual 18 | . 18 . . Terminals 19 | . 19 . . Fabricators . | . . . . Repair Stations . | . . . . Recycling Units 1 | . 1 . . Scanalyzers 1 | . . . 1 Garrison Access 1 | . . . 1 Terminal Hacks 4 | . 3 1 . Robot Analysis 2 | . 2 . . Prototype ID Bank 1 | . 1 . . Proto ID Catalog 1 | . . 1 . Fabricator Hacks . | . . . . Repair Station Hacks . | . . . . Recycling Unit Hacks 1 | . 1 . . Report Inventory 1 | . 1 . . Scanalyzer 1 | . . . 1 Retrieve Study 1 | . . . 1 Garrison Access Hacks 1 | . . . 1 Seal Access 1 | . . . 1 Unauthorized Hacks 6 | . 6 . . Terminals 6 | . 6 . . Botnet 1 | . 1 . . Skim 5 | . 5 . . Fabricators . | . . . . Repair Stations . | . . . . Recycling Units . | . . . . Scanalyzers . | . . . . Garrison Access . | . . . . Data Cores Recovered . | . . . . Used . | . . . . Hacking Detections 3 | . 3 . . Full Trace Events . | . . . . Feedback Events . | . . . . Feedback Blocked . | . . . . Robot Schematics Acquired . | . . . . Robots Built . | . . . . Authchips . | . . . . Time . | . . . . Total Robot Build Rating . | . . . . Part Schematics Acquired . | . . . . Parts Built . | . . . . Authchips . | . . . . Time . | . . . . Total Part Build Rating . | . . . . Part Studies Acquired 1 | . . . 1 Parts Repaired . | . . . . Time . | . . . . Parts Recycled . | . . . . Recycled Matter . | . . . . Retrieved Matter . | . . . . Retrieved Components . | . . . . Parts Scanalyzed . | . . . . Part Schematics Acquired . | . . . . Parts Damaged . | . . . . Bothacking | -11 -10 -10 -8 ------------ Run | Yrd Mat Sub Mat Used RIF Installer . | . . . . Robots Hacked . | . . . . Non-combat . | . . . . Combat . | . . . . Robot Hacks Applied . | . . . . Relay Couplers Released . | . . . . Fabnet Peak Effective % . | . . . . Robots Rewired . | . . . . Allies Hacked . | . . . . Hacks Repelled . | . . . . Allies | -11 -10 -10 -8 -------- Run | Yrd Mat Sub Mat Total Allies . | . . . . Largest Group . | . . . . Highest-Rated Group . | . . . . Highest-Rated Ally . | . . . . Total Orders . | . . . . Ally Attacks . | . . . . Total Damage . | . . . . Kills . | . . . . Allies Corrupted . | . . . . Allies Melted . | . . . . Intel | -11 -10 -10 -8 ------- Run | Yrd Mat Sub Mat Active Infowar (turns) 3831 | 7 764 2821 239 Terrain 938 | . . 938 . Structural 2122 | . . 1883 239 Seismic 961 | 7 764 . 190 Robot Analysis Total 2 | . 2 . . Derelict Logs Recovered 1 | . . 1 . Drone Launches . | . . . . Drone Recoveries . | . . . . Exploration | -11 -10 -10 -8 ------------- Run | Yrd Mat Sub Mat Turns Passed 3899 | 66 764 2830 239 Spaces Moved 2291 | 50 497 1649 95 Core 1 | 1 . . . Treads 1873 | . 129 1649 95 Legs . | . . . . Wheels 417 | 49 368 . . Hover . | . . . . Flight . | . . . . Fastest Speed 50 | 50 80 160 145 Average Speed 145 | 79 104 160 151 Slowest Speed 185 | 80 160 160 185 Overloaded Moves . | . . . . Propulsion Burnouts . | . . . . Robots Hopped . | . . . . Potential Cave-ins . | . . . . Cave-ins Triggered . | . . . . Exploration Rate (%) 43 | 3 77 83 11 Regions Visited 3 Branch Regions 1 Pre-discovered Areas 2 | . 1 1 . Known Exits Taken 2 | . 1 1 . Unknown Exits Taken 1 | 1 . . . Scrap Searched 8 | . . 8 . Spaces Dug 6 | . . 6 . Terrain Destroyed 88 | . . 79 9 Melee . | . . . . Projectile 2 | . . 1 1 AOE 86 | . . 78 8 Terrain Rammed . | . . . . Walls Destroyed . | . . . . Machines Disabled . | . . . . Actions | -11 -10 -10 -8 --------- Run | Yrd Mat Sub Mat Total 2659 | 67 675 1769 148 Wait 154 | . 120 31 3 Move 2288 | 49 496 1648 95 Hop . | . . . . Pick Up 33 | 6 10 11 6 Fast Attach 12 | 6 1 1 4 Attach 8 | . . 4 4 Detach 1 | . . 1 . Swap 26 | . 7 12 7 Drop 25 | . 8 10 7 Fire 111 | 6 33 51 21 Melee . | . . . . Ram . | . . . . Kick . | . . . . Crush 1 | . . . 1 Escape Stasis . | . . . . Rewire . | . . . . Trap . | . . . . Miscellaneous . | . . . . Route ------- -11/Scrapyard -10/Materials (discovered 6 exits: *Mat x3 / Min x2 / *Sub) -10/Subcaves (discovered 3 exits: *Mat x2 / *Rec) -8/Materials History --------- Turn | Location | Event 12 | -11/Scrapyard | Discovered new exit (range 16) 67 | -11/Scrapyard | Entered Materials 122 | -10/Materials | Discovered new exit (range 11) 322 | -10/Materials | Build established: Mutant 410 | -10/Materials | Discovered new exit (range 4) 518 | -10/Materials | Central database locked down 580 | -10/Materials | Identified exit to Subcaves 580 | -10/Materials | Identified exit to Mines 609 | -10/Materials | Discovered new exit (range 6) 669 | -10/Materials | Identified exit to Materials 700 | -10/Materials | Learned location of 2 exits from Subcaves 726 | -10/Materials | Learned Storage stockpile data 743 | -10/Materials | Learned Storage garrison access intel 769 | -10/Materials | Learned Storage security intel 831 | -10/Materials | Entered Subcaves 832 | -10/Subcaves | Identified exit to Materials 832 | -10/Subcaves | Identified exit to Recycling 888 | -10/Subcaves | Shifting Twisted Machinery released Sub. Beam Cannon 1363 | -10/Subcaves | Shifting Twisted Machinery released Spk. Treads 1388 | -10/Subcaves | Shifting Twisted Machinery released Sub. Power Source 1418 | -10/Subcaves | Build established: Scavenger-Mutant 1533 | -10/Subcaves | Discovered exit to Materials (range 13) 1608 | -10/Subcaves | Core integrity fell below 50% 1875 | -10/Subcaves | Build established: Mutant 1880 | -10/Subcaves | A swath of the cavern ceiling suddenly collapsed 2384 | -10/Subcaves | Disturbed a concealed Subdweller 2951 | -10/Subcaves | Learned 4 Materials zone layouts 3018 | -10/Subcaves | Shifting Twisted Machinery released Sub. Beam Cannon 3142 | -10/Subcaves | Learned location of Zion (-7) 3142 | -10/Subcaves | Met a Zionite searching for "candidates" 3491 | -10/Subcaves | Visited 4L-MR0's lab 3516 | -10/Subcaves | Found Tower Shield 3661 | -10/Subcaves | Entered Materials 3661 | -8/Materials | Evolved 4 slots: Propulsion x1, Utility x3 3814 | -8/Materials | Lost 3 parts (2u1w) 3885 | -8/Materials | Attached Tower Shield, gained temporary slots: Power, Propulsion x2, Utility x2, Weapon x2 3900 | -8/Materials | Self-destructed Last Messages --------------- 03883_ K-01 Serf collects debris. 03885_ Core temporarily expanded with Power slot. 03885_ Core temporarily expanded with Propulsion slot. 03885_ Core temporarily expanded with Utility slot. 03885_ Core temporarily expanded with Weapon slot. 03890_ K-01 Serf collects debris. 03891_ Seismic Detector destroyed. 03891_ Acquired 12 matter. 03894_ K-01 Serf collects debris. 03894_ S-10 Pest destroyed. 03894_ R-06 Scavenger collects Unknown Device. 03895_ Critical hit (Burn: +37). 03898_ System corrupted: Heat flow error (+125). 03898_ Tower Shield destroyed. 03898_ K-01 Serf collects debris. 03898_ Temporary Power slot lost. 03898_ Temporary Propulsion slot lost. 03898_ Temporary Utility slot lost. 03898_ Temporary Weapon slot lost. 03898_ T-07 Excavator is excavating. Map ----- +----------------------------------------------------+ | ?????????????????????????????????######## + """ | | ????????????????????????????????? # """ | | ????????????????????????????????? # | | ????????????????????????????????? # | | ?????????????????????????????????######## ###### | | ?????????????????????????????????"" """ # # | | ?????????????????????????????????"" """ # # """ | | ?????????????????????????????????"" """ + # """ | | ????????????????????????????????? # # """ | | ????????????????????????????????? # + | | ????????????????????????????????? # # | | ?????????????????????###????????? # # | | ?????????????????????####???????? # # | | ???????????????????### #####???########## # | | ???????????????????####t####???########## ##### | | ??????????????????? ??? ##??## | | ????????????? ?????? ?????? ##???? | | ????????????? """" ???? ##???? | | ?????????????## """" ##????## # ???? | | ????????????### """" ##???? # """% # ??? | | ????????????### ##???? # """ % # ??? | | ????????????#"" ##???? # " / ???? | | ?????????????"T ##???? # # ???? | | ?????????????"" k ##???? # # | | ?????????????## "" !!! ## # "" ###### | | ?????????????## "T !!! @######## G" # | | ????????????? s s"" !!!s ![% "" % # """ | | ??????????? s a!s%%* =*=# """ | | ?????????? gg= % % %/ """ | | ??????????+####+#+### ########/##### %[# | | ?????????? # ########### # # | | ??????????????????? ########?## """ / ###### | | ?????????????????????????????## "" % ###+####### | | ?????????????????????????????## """ # # | | ?????????????????????????????## %+ # | | ?????????????????????????????## == % # # | | ?????????????????????????????## == # # | | ?????????????????????????????## =* # "S """ # | | ?????????????????????????????## # """ """ # | | ?????????????????????????????########### "" """ # | | ?????????????????????????????########### # | | ??????????????????????????????????????############ | | | | | | | | | | | | | | | | | +----------------------------------------------------+ Best States ------------- Heat Dissipation 31 Energy Generation 15 Energy Capacity 265 Matter Stores 300 Matter Capacity 300 Sight Range 16 Terrain Scan Range 16 Terrain Scan Density 10 Armor Coverage 2000 Evasion (%) 44 Recoil Reduction 3 Defensive Hacking 11 Item Schematics ----------------- None Robot Schematics ------------------ None Fabricated ------------ Nothing Repaired ---------- Nothing Studied --------- Adv. Treads | -8/Materials | Hacked Alien Tech Used ----------------- None Achievements -------------- None Challenges ------------ None Game ------ Seed SpectralGammaObliterator Manual? 0 Play Time 00:48:57 Cumulative 55.0 hours Start 2025.11.26 @ 16:12:11 End 2025.11.27 @ 10:24:16 Sessions 1 Manual Loads 0 Difficulty Rogue Special Mode None Game No. 76 Rogue 76 Adventurer 0 Explorer 0 Win Type - Total 1 Types 1/0/0/0/0/0/0/0/0/0 Lore% 42 Gallery% 36 Achievement% 32 Wizard Run 0 Options --------- Layout 0 ASCII 0 Keyboard 0 Movement Mouse Keybinds 0 Fullscreen 2 Font 24/Crisp Map View 76x50 Zoom Use 0% Tactical HUD 1 Map Filters NONE Filters NONE Steam 1 RUN: c93de997-3abd-4d27-acbe-ef2d45963291